bitfinex/quotes_SOLUSD_20250609
["timestamp","ask_amount","ask_price","bid_price","bid_amount"]
[1749435675694,12.38839285,152.38,152.33,6.70652271]
[1749435676009,12.38839285,152.37,152.33,6.70652271]
[1749435676221,12.38839285,152.38,152.34,8.19051552]
[1749435676399,12.38839285,152.38,152.34,20.57890837]
[1749435679125,12.38839285,152.35,152.3,1.5458]
[1749435679415,12.38839285,152.32,152.29,6.5662788]
[1749435679590,12.38839285,152.32,152.28,6.56672096]
[1749435679785,12.38839285,152.3,152.26,11.9943]
[1749435680299,12.38839285,152.3,152.26,18.56185452]
[1749435680688,26.0,152.36,152.26,18.56185452]
[1749435680689,12.38839285,152.32,152.28,12.38839285]
[1749435680908,12.38839285,152.33,152.28,12.38839285]
[1749435681110,12.38839285,152.33,152.28,18.95509899]
[1749435681310,6.56448494,152.34,152.28,18.95509899]
[1749435681609,12.38839285,152.32,152.28,18.95509899]
[1749435682815,6.56448494,152.34,152.26,11.9943]
[1749435682816,12.38839285,152.3,152.26,30.95034632]
[1749435683119,6.56481218,152.33,152.26,18.56195347]
[1749435683120,12.38839285,152.29,152.26,18.56195347]
[1749435683487,12.38839285,152.3,152.26,30.95034632]
[1749435683701,12.38839285,152.31,152.27,12.38839285]
[1749435684106,10.36,152.34,152.28,12.38839285]
[1749435684288,22.74839285,152.34,152.29,12.38839285]
[1749435684490,12.38839285,152.33,152.3,6.56598818]
[1749435684688,12.38839285,152.32,152.29,6.56628848]
[1749435685494,12.38839285,152.31,152.27,18.95567465]
[1749435685699,12.38839285,152.3,152.27,6.5672818]
[1749435686293,12.38839285,152.3,152.26,11.9943]
[1749435686725,12.38839285,152.29,152.26,11.9943]
[1749435686937,12.38839285,152.29,152.26,10.34]
[1749435688805,12.38839285,152.29,152.26,16.90768697]
[1749435689327,12.38839285,152.3,152.26,16.90768697]
[1749435694211,12.38839285,152.3,152.26,29.29607982]
[1749435697223,12.38839285,152.3,152.26,18.95607982]
[1749435703242,12.38839285,152.3,152.26,6.56768697]
[1749435704144,12.38839285,152.29,152.25,18.95644257]
[1749435704345,12.38839285,152.28,152.24,18.95679724]
[1749435705429,12.38839285,152.25,152.2,12.38839285]
[1749435705759,12.38839285,152.26,152.21,12.38839285]
[1749435706124,12.38839285,152.26,152.22,6.56943896]
[1749435706322,12.38839285,152.27,152.22,18.95783181]
[1749435707756,12.38839285,152.26,152.22,18.95783181]
[1749435709134,12.38839285,152.27,152.22,18.95783181]
[1749435709348,12.38839285,152.27,152.23,12.38839285]
[1749435711040,12.38839285,152.27,152.24,6.56857593]
[1749435711222,12.38839285,152.28,152.24,6.56857593]
[1749435711947,38.38839285,152.32,152.24,6.56857593]
[1749435711948,12.38839285,152.27,152.24,6.56857593]
[1749435713251,12.38839285,152.27,152.21,6.56987057]
[1749435713422,12.38839285,152.26,152.22,12.53055442]
[1749435714133,12.38839285,152.26,152.23,6.56900742]
[1749435714334,12.38839285,152.27,152.23,6.56900742]
[1749435715038,6.56648111,152.29,152.23,6.56900742]
[1749435715250,12.38839285,152.27,152.23,6.56900742]
[1749435715439,12.38839285,152.27,152.23,18.95740027]
[1749435715753,12.38839285,152.28,152.24,12.38839285]
[1749435716827,12.38839285,152.28,152.25,6.56814449]
[1749435717634,12.38839285,152.29,152.25,6.56814449]
[1749435718153,154.17069846,152.33,152.27,12.38839285]
[1749435718467,12.38839285,152.32,152.27,12.38839285]
[1749435718666,154.17069846,152.33,152.27,12.38839285]
[1749435718835,159.99399285,152.33,152.29,18.95481218]
[1749435719244,159.99399285,152.33,152.29,12.38839285]
[1749435719651,166.55869288,152.33,152.28,18.95510126]
[1749435719941,12.38839285,152.31,152.27,6.56726342]
[1749435720828,12.38839285,152.31,152.27,18.95565627]
[1749435721037,12.38839285,152.32,152.28,12.38839285]
[1749435721546,12.38839285,152.32,152.27,18.95565627]
[1749435722441,17.27805932,152.32,152.27,18.95565627]
[1749435722648,12.38839285,152.31,152.27,12.38839285]
[1749435722828,12.38839285,152.3,152.25,52.46839285]
[1749435723753,18.9545581,152.3,152.25,59.03650685]
[1749435726342,12.38839285,152.28,152.24,12.38839285]
[1749435726666,12.38839285,152.28,152.23,59.03703565]
[1749435727442,18.95538534,152.28,152.23,59.03703565]
[1749435727666,12.38839285,152.27,152.23,0.14216157]
[1749435727848,11.46149656,152.28,152.22,44.95768935]
[1749435727849,12.38839285,152.26,152.22,44.95768935]
[1749435730267,6.56757354,152.27,152.22,44.95768935]
[1749435730268,12.38839285,152.27,152.22,44.95768935]
[1749435731060,12.38839285,152.26,152.22,44.95768935]
[1749435731466,23.85042448,152.27,152.22,44.95768935]
[1749435731780,18.95589049,152.27,152.22,44.95768935]
[1749435731977,18.95589049,152.27,152.22,38.38839285]
[1749435732344,23.85042448,152.27,152.22,38.38839285]
[1749435732558,12.38839285,152.26,152.22,44.95771796]
[1749435733049,12.38839285,152.26,152.22,18.95771796]
[1749435734165,18.95589049,152.27,152.22,18.95771796]
[1749435734953,12.38839285,152.27,152.22,18.95771796]
[1749435735157,23.8499494,152.28,152.23,12.38839285]
[1749435735368,18.95541541,152.28,152.24,12.38839285]
[1749435736169,12.38839285,152.28,152.24,12.38839285]
[1749435736369,4.89568961,152.31,152.27,12.38839285]
[1749435736674,23.84993783,152.32,152.28,12.38839285]
[1749435736882,23.84988082,152.32,152.28,12.38839285]
[1749435737057,17.28462654,152.31,152.27,12.38839285]
[1749435737377,12.38839285,152.31,152.27,12.38839285]
[1749435737767,23.8497014,152.32,152.27,12.38839285]
[1749435738153,4.89605427,152.31,152.27,12.38839285]
[1749435738348,23.8497014,152.32,152.27,12.38839285]
[1749435738884,23.8497014,152.32,152.27,18.95554649]
[1749435740088,4.89605427,152.31,152.27,18.95554649]
[1749435740895,12.38839285,152.31,152.27,18.95554649]
[1749435741564,23.84775635,152.31,152.27,12.38839285]
[1749435741772,12.38839285,152.31,152.27,12.38839285]
[1749435741964,4.89376675,152.31,152.27,18.95553147]
[1749435742158,23.84777123,152.32,152.27,18.95553147]
[1749435742683,4.89408289,152.31,152.27,18.95553147]
[1749435742868,23.84777123,152.32,152.27,18.95553147]
[1749435743068,18.95368834,152.32,152.27,18.95553147]
[1749435743271,23.84891744,152.32,152.27,18.95553147]
[1749435743579,23.84902866,152.32,152.27,18.95553147]
[1749435743775,18.95368834,152.32,152.27,18.95553147]
[1749435743962,17.2836485,152.32,152.27,18.95553147]
[1749435744161,4.89517853,152.31,152.27,18.95553147]
[1749435744364,17.28368753,152.32,152.27,18.95553147]
[1749435744562,12.38839285,152.31,152.27,18.95553147]
[1749435745165,17.28368753,152.31,152.27,18.95553147]
[1749435745365,17.28368753,152.32,152.28,12.38839285]
[1749435745779,12.38839285,152.32,152.28,12.38839285]
[1749435746080,17.28314534,152.32,152.28,12.38839285]
[1749435746282,12.38839285,152.32,152.28,12.38839285]
[1749435746581,12.38839285,152.31,152.26,6.70973793]
[1749435746887,12.38839285,152.31,152.27,12.38839285]
[1749435747670,12.38839285,152.3,152.26,19.09813078]
[1749435749173,18.95409812,152.31,152.27,12.38839285]
[1749435749478,12.38839285,152.29,152.23,38.10916157]
[1749435749794,12.38839285,152.25,152.21,44.95809264]
[1749435749972,12.38839285,152.28,152.23,12.38839285]
[1749435750170,12.38839285,152.28,152.24,12.38839285]
[1749435750992,12.38839285,152.28,152.23,18.95712782]
[1749435753084,12.38839285,152.28,152.24,12.38839285]
[1749435753579,12.38839285,152.28,152.24,18.95677155]
[1749435753777,23.85128213,152.29,152.24,18.95677155]
[1749435753994,18.95515621,152.29,152.24,18.95677155]
[1749435754381,18.95515621,152.29,152.25,12.38839285]
[1749435754889,12.38839285,152.29,152.25,12.38839285]
[1749435755794,12.38839285,152.29,152.25,18.9564906]
[1749435756895,12.38839285,152.3,152.26,12.38839285]
[1749435757085,22.72839285,152.31,152.27,12.38839285]
[1749435757284,17.28476334,152.31,152.27,12.38839285]
[1749435757485,23.8503495,152.31,152.26,12.38839285]
[1749435757784,12.38839285,152.3,152.26,12.38839285]
[1749435758492,17.28475161,152.3,152.26,12.38839285]
[1749435758873,17.28475161,152.3,152.26,18.95608203]
[1749435759070,12.38839285,152.3,152.26,18.95608203]
[1749435760494,147.6056,152.33,152.26,18.95608203]
[1749435760495,11.46205574,152.32,152.26,18.95608203]
[1749435760700,17.28532254,152.31,152.27,12.38839285]
[1749435760873,12.38839285,152.31,152.27,12.38839285]
[1749435761498,17.28641565,152.31,152.27,12.38839285]
[1749435761701,12.38839285,152.31,152.27,12.38839285]
[1749435761901,17.28608449,152.31,152.27,12.38839285]
[1749435762294,23.85174566,152.31,152.27,12.38839285]
[1749435762496,18.95405402,152.31,152.27,12.38839285]
[1749435762699,23.85174566,152.31,152.27,12.38839285]
[1749435762889,18.95405402,152.31,152.27,12.38839285]
[1749435763188,23.85174566,152.31,152.27,12.38839285]
[1749435763387,18.95405402,152.31,152.27,12.38839285]
[1749435764339,4.89624057,152.32,152.28,12.38839285]
[1749435764604,17.28560815,152.32,152.28,12.38839285]
[1749435765491,17.28560815,152.32,152.28,18.95521029]
[1749435766504,17.28540369,152.32,152.28,18.95521029]
[1749435767694,12.38839285,152.32,152.28,18.95521029]
[1749435767899,18.95355959,152.32,152.28,12.38839285]
[1749435768923,23.84988577,152.32,152.28,12.38839285]
[1749435769627,23.84984059,152.32,152.28,12.38839285]
[1749435769822,12.38839285,152.3,152.26,52.44839285]
[1749435770290,12.38839285,152.31,152.26,52.44839285]
[1749435771212,18.95408816,152.31,152.26,59.01605025]
[1749435773987,12.38839285,152.3,152.26,52.44839285]
[1749435774308,12.38839285,152.3,152.26,12.38839285]
[1749435776395,18.95408816,152.31,152.26,18.95608475]
[1749435776596,23.84939251,152.31,152.26,18.95608475]
[1749435776895,18.95408816,152.31,152.26,12.38839285]
[1749435777199,23.84939251,152.31,152.26,12.38839285]
[1749435777499,18.95408816,152.31,152.26,12.38839285]
[1749435778997,18.95408816,152.31,152.25,46.62807682]
[1749435778998,12.38839285,152.29,152.25,52.44839285]
[1749435780897,18.95505829,152.29,152.25,12.38839285]
[1749435781392,18.95505829,152.29,152.24,26.0]
[1749435781594,18.95505829,152.29,152.23,10.34]
[1749435781595,12.38839285,152.27,152.23,69.35730286]
[1749435782405,12.38839285,152.27,152.23,29.29730286]
[1749435782630,12.38839285,152.27,152.23,10.34]
[1749435783013,12.38839285,152.26,152.22,26.0]
[1749435783214,12.38839285,152.25,152.22,26.0]
[1749435783514,12.38839285,152.26,152.22,26.0]
[1749435784110,18.9562148,152.26,152.22,26.0]
[1749435784311,12.38839285,152.26,152.22,32.56928834]
[1749435784639,18.95570127,152.27,152.22,44.95768119]
[1749435784836,4.89424185,152.27,152.23,12.38839285]
[1749435785015,12.38839285,152.29,152.24,12.38839285]
[1749435785516,12.38839285,152.28,152.24,12.38839285]
[1749435786535,12.38839285,152.28,152.24,18.95683744]
[1749435790231,17.28227883,152.28,152.24,18.95683744]
[1749435790437,23.8491888,152.28,152.24,12.38839285]
[1749435790636,18.95530282,152.28,152.23,18.9571292]
[1749435790948,18.95530282,152.28,152.23,12.38839285]
[1749435791138,12.38839285,152.27,152.23,12.38839285]
[1749435791817,12.38839285,152.27,152.22,85.01765422]
[1749435792016,12.38839285,152.27,152.23,12.38839285]
[1749435793533,18.95572554,152.27,152.23,12.38839285]
[1749435795222,12.38839285,152.27,152.23,18.95738501]
[1749435796352,18.95540001,152.28,152.24,12.38839285]
[1749435797736,12.38839285,152.27,152.23,18.95738501]
[1749435801331,7.9534375,152.27,152.23,14.52242966]
[1749435802952,7.9534375,152.27,152.23,7.9534375]
[1749435807730,14.52044466,152.28,152.23,7.9534375]
[1749435808240,14.52044466,152.28,152.24,7.9534375]
[1749435809954,7.9534375,152.29,152.24,14.52186047]
[1749435810157,7.9534375,152.29,152.25,7.9534375]
[1749435810452,7.9534375,152.29,152.24,14.52186047]
[1749435810757,12.85049832,152.29,152.24,14.52186047]
[1749435810932,7.9534375,152.29,152.24,14.52186047]
[1749435811253,19.416843,152.29,152.24,14.52186047]
[1749435811457,14.51994531,152.29,152.24,14.52186047]
[1749435812053,4.89714998,152.3,152.26,7.9534375]
[1749435812349,12.85058748,152.3,152.26,7.9534375]
[1749435812563,12.85058748,152.3,152.25,7.9534375]
[1749435813163,19.416651,152.3,152.25,14.52157545]
[1749435813463,14.51950102,152.3,152.25,14.52157545]
[1749435813635,19.41751255,152.3,152.25,14.52157545]
[1749435813823,4.89801153,152.3,152.26,7.9534375]
[1749435814031,12.85189029,152.31,152.27,7.9534375]
[1749435814260,7.9534375,152.31,152.26,7.9534375]
[1749435815250,7.9534375,152.3,152.26,7.9534375]
[1749435816761,12.85423882,152.3,152.26,7.9534375]
[1749435817351,7.9534375,152.3,152.26,7.9534375]
[1749435818159,12.85353401,152.3,152.26,7.9534375]
[1749435818342,7.9534375,152.3,152.26,7.9534375]
[1749435818945,7.9534375,152.3,152.27,7.9534375]
[1749435821166,14.51910702,152.31,152.27,7.9534375]
[1749435821860,4.90173548,152.3,152.27,7.9534375]
[1749435822063,12.85558695,152.3,152.26,14.52095019]
[1749435822362,12.8558101,152.3,152.26,14.52095019]
[1749435822562,7.9534375,152.3,152.26,14.52095019]
[1749435824189,6.56566952,152.31,152.26,14.52095019]
[1749435824364,7.9534375,152.3,152.26,14.52095019]
[1749435825763,12.85580243,152.3,152.26,14.52095019]
[1749435827578,7.9534375,152.3,152.26,14.52095019]
[1749435831801,14.51910702,152.31,152.27,7.9534375]
[1749435833395,19.42332499,152.31,152.27,7.9534375]
[1749435836420,14.51910702,152.31,152.27,7.9534375]
[1749435836717,19.42538809,152.31,152.27,7.9534375]
[1749435837323,19.42307805,152.31,152.27,7.9534375]
[1749435838398,14.51910702,152.31,152.27,7.9534375]
[1749435839513,19.42325389,152.31,152.27,7.9534375]
[1749435840408,19.42325389,152.31,152.26,14.52080754]
[1749435841323,14.51910702,152.31,152.26,14.52080754]
[1749435841522,19.42318923,152.31,152.26,14.52080754]
[1749435842323,19.42410893,152.31,152.26,14.52080754]
[1749435843317,7.9534375,152.31,152.26,14.52080754]
[1749435843497,12.85858523,152.31,152.26,14.52080754]
[1749435844426,7.9534375,152.31,152.26,14.52080754]
[1749435845837,146.1,152.33,152.29,7.9534375]
[1749435846136,16.16770617,152.36,152.31,7.9534375]
[1749435846325,4.90619455,152.35,152.31,7.9534375]
[1749435846512,16.16770617,152.36,152.31,7.9534375]
[1749435846714,4.90647828,152.35,152.31,7.9534375]
[1749435847026,7.9534375,152.35,152.31,7.9534375]
[1749435847918,12.85997817,152.35,152.31,7.9534375]
[1749435848535,12.85997817,152.35,152.3,14.51916827]
[1749435850639,19.42385903,152.35,152.3,14.51916827]
[1749435851417,7.9534375,152.31,152.27,26.0]
[1749435851615,6.56388086,152.35,152.27,26.0]
[1749435851616,7.9534375,152.3,152.27,26.0]
[1749435852328,7.9534375,152.31,152.27,40.52069536]
[1749435852644,11.47149586,152.33,152.27,40.52069536]
[1749435852645,12.85997817,152.32,152.28,7.9534375]
[1749435852947,19.4251517,152.32,152.28,7.9534375]
[1749435853126,14.51861103,152.32,152.28,7.9534375]
[1749435853646,19.4251517,152.32,152.28,7.9534375]
[1749435853846,14.51861103,152.32,152.28,7.9534375]
[1749435854247,7.9534375,152.31,152.27,40.52069536]
[1749435859955,6.56517353,152.32,152.27,40.52069536]
[1749435860145,4.90536439,152.34,152.31,7.9534375]
[1749435860453,4.90536439,152.35,152.32,7.9534375]
[1749435860642,16.16771012,152.36,152.32,7.9534375]
[1749435861042,9.6041375,152.36,152.32,7.9534375]
[1749435861355,7.9534375,152.36,152.32,7.9534375]
[1749435861728,4.90482693,152.36,152.32,7.9534375]
[1749435861930,14.5165532,152.37,152.32,7.9534375]
[1749435862434,14.5165532,152.37,152.32,14.51850867]
[1749435863129,19.41855188,152.37,152.32,14.51850867]
[1749435863561,12.85543618,152.37,152.32,14.51850867]
[1749435863768,12.85543618,152.37,152.33,7.9534375]
[1749435864145,7.9534375,152.36,152.32,7.9534375]
[1749435864350,7.9534375,152.36,152.31,14.51887414]
[1749435866955,7.9534375,152.36,152.32,14.5182748]
[1749435867152,14.51645093,152.37,152.32,14.5182748]
[1749435867464,7.9534375,152.37,152.33,7.9534375]
[1749435868366,7.9534375,152.37,152.33,14.51808035]
[1749435869144,14.51641604,152.37,152.33,7.9534375]
[1749435870858,7.9534375,152.35,152.31,14.51897533]
[1749435872966,14.51742432,152.35,152.3,14.80357449]
[1749435877173,7.9534375,152.33,152.29,19.8610375]
[1749435877483,7.9534375,152.32,152.29,10.3]
[1749435878951,7.9534375,152.33,152.29,24.81983758]
[1749435879969,14.51784366,152.34,152.29,24.81983758]
[1749435881277,14.51784366,152.34,152.29,29.28301311]
[1749435881278,18.98101919,152.34,152.29,29.28301311]
[1749435881952,12.41661303,152.34,152.3,12.41661303]
[1749435882151,12.41661303,152.35,152.31,12.41661303]
[1749435883362,12.41661303,152.35,152.31,18.98216111]
[1749435884178,12.41661303,152.35,152.31,12.41661303]
[1749435885050,12.41661303,152.35,152.3,6.56582039]
[1749435885251,12.41661303,152.35,152.31,12.41661303]
[1749435888257,18.98057306,152.35,152.3,6.56582039]
[1749435888461,12.41661303,152.34,152.3,18.98243342]
[1749435889564,12.41661303,152.34,152.3,12.41661303]
[1749435892073,12.41661303,152.32,152.29,10.3]
[1749435892466,17.32440089,152.33,152.29,22.71661303]
[1749435892661,12.41661303,152.33,152.29,22.71661303]
[1749435894087,23.88954258,152.34,152.29,12.41661303]
[1749435894280,7.9695,152.36,152.29,12.41661303]
[1749435894281,23.88908018,152.35,152.31,12.41661303]
[1749435894796,18.98052966,152.35,152.31,12.41661303]
[1749435894984,18.98052966,152.35,152.3,12.41661303]
[1749435895378,23.88884923,152.34,152.3,12.41661303]
[1749435895684,18.98108181,152.34,152.29,58.96281536]
[1749435896271,23.88877015,152.34,152.29,58.96281536]
[1749435896470,18.98108181,152.34,152.29,58.96281536]
[1749435896682,23.88877015,152.34,152.29,58.96281536]
[1749435896885,18.98108181,152.34,152.29,58.96281536]
[1749435897085,23.88877015,152.34,152.29,58.96281536]
[1749435897286,12.41661303,152.33,152.29,58.96281536]
[1749435898475,18.98108181,152.34,152.29,58.96281536]
[1749435898676,23.88868181,152.34,152.29,58.96281536]
[1749435898990,18.98108181,152.34,152.29,58.96281536]
[1749435899194,23.88868181,152.34,152.29,58.96281536]
[1749435899410,18.98108181,152.34,152.29,58.96281536]
[1749435899613,23.88868181,152.34,152.29,58.96281536]
[1749435899903,18.98108181,152.34,152.29,58.96281536]
[1749435900081,23.88868181,152.34,152.29,58.96281536]
[1749435900385,18.98108181,152.34,152.29,58.96281536]
[1749435900577,18.98108181,152.34,152.3,12.41661303]
[1749435901097,18.98108181,152.34,152.29,58.96281536]
[1749435901902,18.98108181,152.34,152.25,8.1890231]
[1749435901903,12.41661303,152.31,152.25,8.1890231]
[1749435902088,12.41661303,152.3,152.25,60.58563613]
[1749435902294,12.41661303,152.31,152.26,12.41661303]
[1749435902985,17.32251106,152.31,152.27,12.41661303]
[1749435903200,17.32251106,152.33,152.29,12.41661303]
[1749435903703,18.98108181,152.34,152.29,12.41661303]
[1749435904005,12.41661303,152.33,152.29,12.41661303]
[1749435904489,17.32363276,152.33,152.29,12.41661303]
[1749435904687,12.41661303,152.33,152.29,12.41661303]
[1749435905698,17.32378781,152.33,152.29,12.41661303]
[1749435906408,17.32378781,152.33,152.29,18.98296936]
[1749435906602,12.41661303,152.34,152.3,12.41661303]
[1749435907402,17.32411765,152.34,152.3,12.41661303]
[1749435908176,17.32411765,152.34,152.3,18.98255559]
[1749435908884,12.41661303,152.34,152.3,18.98255559]
[1749435910887,18.98097936,152.34,152.29,6.56634479]
[1749435911095,18.98097936,152.34,152.3,12.41661303]
[1749435911423,23.88890315,152.34,152.3,12.41661303]
[1749435911587,12.41661303,152.34,152.3,12.41661303]
[1749435913605,18.98098239,152.34,152.3,12.41661303]
[1749435913909,18.98098239,152.34,152.29,18.98295782]
[1749435914204,12.41661303,152.34,152.3,12.41661303]
[1749435914708,18.98059945,152.35,152.3,12.41661303]
[1749435915208,4.90817143,152.34,152.3,12.41661303]
[1749435915408,18.98059945,152.35,152.3,12.41661303]
[1749435915605,4.90863254,152.34,152.3,12.41661303]
[1749435915786,18.98015779,152.36,152.32,12.41661303]
[1749435915988,4.90885131,152.35,152.32,12.41661303]
[1749435916198,18.98015779,152.36,152.32,12.41661303]
[1749435916398,4.90957758,152.35,152.32,12.41661303]
[1749435916590,18.98015779,152.36,152.32,12.41661303]
[1749435916808,4.90940137,152.35,152.32,12.41661303]
[1749435917025,18.98015779,152.36,152.32,12.41661303]
[1749435917210,4.90947529,152.35,152.32,7.94410317]
[1749435917387,14.50764793,152.36,152.32,7.94410317]
[1749435917593,4.9091262,152.35,152.32,7.94410317]
[1749435917795,14.50764793,152.36,152.32,7.94410317]
[1749435917995,4.90893755,152.35,152.32,7.94410317]
[1749435918193,14.50764793,152.36,152.32,7.94410317]
[1749435918411,4.90890009,152.35,152.32,7.94410317]
[1749435918608,14.50764793,152.36,152.32,7.94410317]
[1749435918813,4.90888021,152.35,152.32,7.94410317]
[1749435919195,4.90888021,152.35,152.32,12.4127458]
[1749435919909,23.88547982,152.35,152.31,12.4127458]
[1749435920218,18.97659961,152.35,152.31,12.4127458]
[1749435921215,18.97659961,152.35,152.3,58.95855985]
[1749435922920,12.4127458,152.35,152.3,58.95855985]
[1749435923122,17.32132853,152.35,152.3,58.95855985]
[1749435924321,17.32132853,152.35,152.31,12.4127458]
[1749435924548,17.32132853,152.35,152.31,18.97816271]
[1749435925411,4.90858273,152.35,152.32,12.4127458]
[1749435925617,12.4127458,152.38,152.34,12.4127458]
[1749435925803,4.90985254,152.37,152.33,12.4127458]
[1749435926116,18.97533184,152.38,152.33,12.4127458]
[1749435926317,4.90953571,152.37,152.33,12.4127458]
[1749435926525,4.90853562,152.37,152.33,18.97743697]
[1749435926709,17.32128142,152.37,152.33,18.97743697]
[1749435927522,12.4127458,152.37,152.33,18.97743697]
[1749435928237,17.31954812,152.37,152.33,18.97743697]
[1749435928937,12.4127458,152.37,152.33,18.97743697]
[1749435929307,12.4127458,152.36,152.32,0.14216157]
[1749435929503,12.4127458,152.34,152.3,32.5658412]
[1749435929737,12.4127458,152.33,152.3,32.5658412]
[1749435930319,12.4127458,152.34,152.3,32.5658412]
[1749435931507,12.4127458,152.33,152.3,26.0]
[1749435932049,18.97704166,152.34,152.3,38.4127458]
[1749435933818,18.97704166,152.34,152.3,26.0]
[1749435934024,18.97704166,152.34,152.3,38.4127458]
[1749435935231,12.4127458,152.32,152.28,32.56674911]
[1749435935427,12.4127458,152.32,152.28,44.97949491]
[1749435935924,12.4127458,152.32,152.27,29.27986177]
[1749435936125,12.4127458,152.3,152.27,10.3]
[1749435936521,12.4127458,152.3,152.25,18.98073526]
[1749435937427,18.97880598,152.3,152.25,18.98073526]
[1749435938622,12.4127458,152.3,152.26,12.4127458]
[1749435940726,12.4127458,152.3,152.26,18.98031054]
[1749435941444,12.4127458,152.31,152.27,12.4127458]
[1749435943123,12.4127458,152.31,152.27,18.97982296]
[1749435943345,12.4127458,152.32,152.27,18.97982296]
[1749435943839,12.4127458,152.31,152.27,18.97982296]
[1749435944518,12.4127458,152.31,152.27,0.14216157]
[1749435944719,12.4127458,152.31,152.27,12.55490737]
[1749435945340,12.4127458,152.33,152.29,12.4127458]
[1749435945548,4.90156708,152.36,152.31,12.4127458]
[1749435945842,12.4127458,152.36,152.32,12.4127458]
[1749435946143,23.87729018,152.37,152.33,12.4127458]
[1749435946320,18.9757231,152.37,152.33,12.4127458]
[1749435946720,12.4127458,152.37,152.33,18.97741645]
[1749435948144,11.46425385,152.38,152.33,18.97741645]
[1749435948340,4.90156708,152.38,152.34,12.4127458]
[1749435948649,4.90156708,152.38,152.36,12.4127458]
[1749435948830,6.13436616,152.42,152.37,12.4127458]
[1749435948831,4.90156708,152.39,152.37,12.4127458]
[1749435949142,18.97391346,152.42,152.38,12.4127458]
[1749435949328,12.4127458,152.41,152.37,12.4127458]
[1749435949535,12.4127458,152.4,152.36,12.4127458]
[1749435950048,12.4127458,152.41,152.37,12.4127458]
[1749435951941,18.97404771,152.41,152.37,12.4127458]
[1749435952150,12.4127458,152.41,152.37,12.4127458]
[1749435952336,12.4127458,152.41,152.37,18.97571721]
[1749435953250,12.4127458,152.41,152.37,12.4127458]
[1749435955753,18.97408716,152.41,152.37,12.4127458]
[1749435959164,18.97408716,152.41,152.36,18.97597866]
[1749435962764,18.97408716,152.41,152.35,6.70582423]
[1749435962980,18.97408716,152.41,152.36,12.4127458]
[1749435964045,12.4127458,152.4,152.36,12.4127458]
[1749435964855,6.56134136,152.41,152.34,38.4127458]
[1749435964856,12.4127458,152.38,152.34,38.4127458]
[1749435965060,12.4127458,152.38,152.34,26.0]
[1749435966063,18.97533293,152.38,152.34,26.0]
[1749435966775,18.97533293,152.38,152.33,29.25743976]
[1749435967448,12.4127458,152.37,152.33,22.6927458]
[1749435967654,12.4127458,152.37,152.33,10.28]
[1749435967871,12.4127458,152.36,152.33,10.28]
[1749435968045,12.4127458,152.34,152.29,10.28]
[1749435968345,12.4127458,152.34,152.3,12.4127458]
[1749435969071,12.4127458,152.35,152.31,18.97809837]
[1749435969378,6.56297171,152.37,152.32,12.4127458]
[1749435969379,18.97571751,152.37,152.32,12.4127458]
[1749435970382,12.4127458,152.36,152.32,12.4127458]
[1749435971579,12.4127458,152.35,152.31,12.4127458]
[1749435972563,12.4127458,152.35,152.31,18.97820185]
[1749435973876,12.4127458,152.34,152.3,6.70814975]
[1749435974053,12.4127458,152.34,152.3,19.12089555]
[1749435974558,6.56394362,152.35,152.3,19.12089555]
[1749435974772,18.97668942,152.35,152.3,19.12089555]
[1749435975071,12.4127458,152.35,152.31,12.4127458]
[1749435975650,12.4127458,152.35,152.3,6.70814975]
[1749435975877,12.4127458,152.35,152.31,12.4127458]
[1749435976381,18.97679093,152.35,152.3,19.12089555]
[1749435976579,12.4127458,152.34,152.3,19.12089165]
[1749435977455,18.97679093,152.35,152.31,12.4127458]
[1749435977780,12.4127458,152.35,152.31,12.4127458]
[1749435978674,18.9766087,152.35,152.31,12.4127458]
[1749435978979,12.4127458,152.34,152.3,19.12089165]
[1749435979169,12.4127458,152.34,152.3,12.55490737]
[1749435979483,12.4127458,152.34,152.3,19.12083286]
[1749435979979,12.4127458,152.35,152.3,19.12083286]
[1749435981382,12.4127458,152.36,152.31,12.4127458]
[1749435981679,12.4127458,152.36,152.32,12.4127458]
[1749435983374,12.4127458,152.36,152.32,18.9777487]
[1749435983760,12.4127458,152.37,152.33,12.4127458]
[1749435984652,20.53174996,152.38,152.33,12.4127458]
[1749435984856,12.4127458,152.37,152.33,18.97725463]
[1749435985783,6.56260416,152.38,152.33,18.97725463]
[1749435985971,12.4127458,152.37,152.33,18.97725463]
[1749435988671,18.97571862,152.37,152.33,12.4127458]
[1749435988979,18.97571862,152.37,152.32,18.97770225]
[1749435991381,14.50682717,152.37,152.32,7.94385435]
[1749435992274,7.94385435,152.37,152.32,7.94385435]
[1749435993692,7.94385435,152.37,152.33,6.56469506]
[1749435996198,7.94385435,152.36,152.33,6.56469506]
[1749435997373,7.94385435,152.37,152.33,6.56469506]
[1749435998687,7.94385435,152.37,152.32,14.50882502]
[1749436002499,7.94385435,152.35,152.31,6.56537213]
[1749436002698,7.94385435,152.36,152.31,14.50922648]
[1749436002872,7.94385435,152.35,152.31,14.50922648]
[1749436003186,7.94385435,152.35,152.31,6.56537213]
[1749436004076,12.8473429,152.35,152.31,6.56537213]
[1749436004272,7.94385435,152.35,152.31,6.56537213]
[1749436004474,12.8473429,152.35,152.31,6.56537213]